[Event "Titled Tuesday Blitz June 21 Early 2022"]
[White "Mangialardo, Tiago Carvalho"]
[Black "Carrasco Miranda, Andres"]
[WhiteFideId "2130718"]
[BlackFideId "3405990"]
[WhiteElo "2094"]
[BlackElo "2177"]
[Result "0-1"]
[Round "06"]
[TimeControl "180+1"]
[Date "2022.06.21"]
[WhiteClock "0:00:03"]
[BlackClock "0:00:18"]

1. e4 {[%clk 0:03:00]}  c5 {[%clk 0:02:59]} 2. Nf3 {[%clk 0:03:00]}  d6 {[%clk 0:02:58]} 3. d4 {[%clk 0:03:01]}  cxd4 {[%clk 0:02:59]} 4. Nxd4 {[%clk 0:03:02]}  Nf6 {[%clk 0:02:59]} 5. Nc3 {[%clk 0:03:02]}  a6 {[%clk 0:02:59]} 6. Be2 {[%clk 0:03:02]}  e6 {[%clk 0:02:58]} 7. Be3 {[%clk 0:03:02]}  Be7 {[%clk 0:02:58]} 8. Qd2 {[%clk 0:03:02]}  b5 {[%clk 0:02:57]} 9. f3 {[%clk 0:02:59]}  Qc7 {[%clk 0:02:54]} 10. a3 {[%clk 0:02:56]}  Nbd7 {[%clk 0:02:53]} 11. Nb3 {[%clk 0:02:48]}  Bb7 {[%clk 0:02:49]} 12. g4 {[%clk 0:02:36]}  Ne5 {[%clk 0:02:46]} 13. g5 {[%clk 0:02:13]}  Nfd7 {[%clk 0:02:43]} 14. f4 {[%clk 0:01:45]}  Nc4 {[%clk 0:02:41]} 15. Bxc4 {[%clk 0:01:45]}  bxc4 {[%clk 0:02:40]} 16. Nd4 {[%clk 0:01:44]}  Nc5 {[%clk 0:02:35]} 17. f5 {[%clk 0:01:02]}  e5 {[%clk 0:02:24]} 18. Nde2 {[%clk 0:00:39]}  Nxe4 {[%clk 0:02:18]} 19. Nxe4 {[%clk 0:00:38]}  Bxe4 {[%clk 0:02:19]} 20. O-O {[%clk 0:00:36]}  Rb8 {[%clk 0:01:53]} 21. Ng3 {[%clk 0:00:26]}  Ba8 {[%clk 0:01:50]} 22. f6 {[%clk 0:00:17]}  gxf6 {[%clk 0:01:47]} 23. gxf6 {[%clk 0:00:18]}  Bf8 {[%clk 0:01:47]} 24. Bh6 {[%clk 0:00:09]}  Qc6 {[%clk 0:01:40]} 25. Nf5 {[%clk 0:00:02]}  Rg8+ {[%clk 0:00:33]} 26. Bg7 {[%clk 0:00:02]}  Qh1+ {[%clk 0:00:30]} 27. Kf2 {[%clk 0:00:03]}  Qxh2+ {[%clk 0:00:30]} 28. Ke1 {[%clk 0:00:03]}  Qxd2+ {[%clk 0:00:29]} 29. Kxd2 {[%clk 0:00:04]}  Rxb2 {[%clk 0:00:28]} 30. Kc3 {[%clk 0:00:04]}  Rb6 {[%clk 0:00:26]} 31. Rad1 {[%clk 0:00:03]}  d5 {[%clk 0:00:26]} 32. Nh6 {[%clk 0:00:02]}  Rxg7 {[%clk 0:00:22]} 33. fxg7 {[%clk 0:00:02]}  Bxg7 {[%clk 0:00:23]} 34. Nxf7 {[%clk 0:00:02]}  e4+ {[%clk 0:00:21]} 35. Kd2 {[%clk 0:00:03]}  c3+ {[%clk 0:00:21]} 36. Ke3 {[%clk 0:00:02]}  d4+ {[%clk 0:00:20]} 37. Kf4 {[%clk 0:00:02]}  Kxf7 {[%clk 0:00:17]} 38. Kg5+ {[%clk 0:00:01]}  Kg8 {[%clk 0:00:17]} 39. Rf4 {[%clk 0:00:01]}  Rg6+ {[%clk 0:00:18]} 40. Kh5 {[%clk 0:00:01]}  d3 {[%clk 0:00:17]} 41. Rdf1 {[%clk 0:00:02]}  dxc2 {[%clk 0:00:16]} 42. Rc1 {[%clk 0:00:01]}  Bd5 {[%clk 0:00:16]} 43. Rxc2 {[%clk 0:00:01]}  Bf7 {[%clk 0:00:16]} 44. Kh4 {[%clk 0:00:01]}  Bf6+ {[%clk 0:00:16]} 45. Kh3 {[%clk 0:00:01]}  Be6+ {[%clk 0:00:17]} 46. Kh2 {[%clk 0:00:01]}  Be5 {[%clk 0:00:17]} 47. Rf2 {[%clk 0:00:02]}  Bxf4+ {[%clk 0:00:17]} 48. Rxf4 {[%clk 0:00:03]}  c2 {[%clk 0:00:18]} 0-1


[Site "https://www.chess.com"]

[Event "Titled Tuesday Blitz June 21 Early 2022"]
[White "Mindlin, Alon"]
[Black "Pranesh M"]
[WhiteFideId "2800071"]
[BlackFideId "35028600"]
[WhiteElo "2390"]
[BlackElo "1902"]
[Result "1-0"]
[Round "06"]
[TimeControl "180+1"]
[Date "2022.06.21"]
[WhiteClock "0:00:38"]
[BlackClock "0:01:10"]

1. d4 {[%clk 0:02:59]}  Nf6 {[%clk 0:03:00]} 2. c4 {[%clk 0:02:58]}  c6 {[%clk 0:03:00]} 3. Nc3 {[%clk 0:02:57]}  d5 {[%clk 0:03:00]} 4. cxd5 {[%clk 0:02:58]}  cxd5 {[%clk 0:03:01]} 5. Bg5 {[%clk 0:02:58]}  Nc6 {[%clk 0:03:01]} 6. Bxf6 {[%clk 0:02:58]}  gxf6 {[%clk 0:03:00]} 7. e3 {[%clk 0:02:58]}  e6 {[%clk 0:03:01]} 8. Nge2 {[%clk 0:02:58]}  f5 {[%clk 0:03:01]} 9. g3 {[%clk 0:02:58]}  Bd7 {[%clk 0:02:59]} 10. Bg2 {[%clk 0:02:58]}  Bd6 {[%clk 0:03:00]} 11. Rc1 {[%clk 0:02:57]}  Rc8 {[%clk 0:03:00]} 12. O-O {[%clk 0:02:54]}  O-O {[%clk 0:03:00]} 13. f3 {[%clk 0:02:52]}  Na5 {[%clk 0:02:59]} 14. e4 {[%clk 0:02:49]}  Nc4 {[%clk 0:02:58]} 15. Qd3 {[%clk 0:02:35]}  Nxb2 {[%clk 0:02:54]} 16. Qb1 {[%clk 0:02:34]}  Nc4 {[%clk 0:02:54]} 17. Qd3 {[%clk 0:02:28]}  Qa5 {[%clk 0:02:44]} 18. exd5 {[%clk 0:02:23]}  exd5 {[%clk 0:02:39]} 19. Bh3 {[%clk 0:02:10]}  Rfe8 {[%clk 0:02:30]} 20. Bxf5 {[%clk 0:01:33]}  Re3 {[%clk 0:02:30]} 21. Qb1 {[%clk 0:01:34]}  Nd2 {[%clk 0:02:30]} 22. Qb2 {[%clk 0:01:34]}  Nxf1 {[%clk 0:02:11]} 23. Bxd7 {[%clk 0:01:32]}  Rc7 {[%clk 0:02:12]} 24. Bh3 {[%clk 0:01:15]}  Ba3 {[%clk 0:02:11]} 25. Qc2 {[%clk 0:01:08]}  Bb2 {[%clk 0:02:06]} 26. Qxb2 {[%clk 0:01:06]}  Nxg3 {[%clk 0:01:23]} 27. hxg3 {[%clk 0:01:01]}  Rxf3 {[%clk 0:01:23]} 28. Qd2 {[%clk 0:00:51]}  f6 {[%clk 0:01:17]} 29. Bg4 {[%clk 0:00:47]}  Rcxc3 {[%clk 0:01:16]} 30. Bxf3 {[%clk 0:00:44]}  Ra3 {[%clk 0:01:13]} 31. Qxa5 {[%clk 0:00:40]}  Rxa5 {[%clk 0:01:14]} 32. Rc7 {[%clk 0:00:41]}  Kf8 {[%clk 0:01:13]} 33. Rxb7 {[%clk 0:00:40]}  Rxa2 {[%clk 0:01:13]} 34. Nf4 {[%clk 0:00:38]}  Ke8 {[%clk 0:01:10]} 35. Ne6 {[%clk 0:00:38]}  Ra1+ {[%clk 0:01:06]} 36. Kg2 {[%clk 0:00:37]}  Ra2+ {[%clk 0:01:07]} 37. Kh3 {[%clk 0:00:38]}  Rh2+ {[%clk 0:01:08]} 38. Kxh2 {[%clk 0:00:37]}  a5 {[%clk 0:01:09]} 39. Bg4 {[%clk 0:00:38]}  a4 {[%clk 0:01:10]} 40. Bh5# {[%clk 0:00:38]} 1-0


[Site "https://www.chess.com"]

[Event "Titled Tuesday Blitz June 21 Early 2022"]
[White "Nguyen, Quoc Hy"]
[Black "Pein, Jonathan"]
[WhiteFideId "12410853"]
[BlackFideId "417092"]
[WhiteElo "1938"]
[BlackElo "2140"]
[Result "1-0"]
[Round "06"]
[TimeControl "180+1"]
[Date "2022.06.21"]
[WhiteClock "0:00:23"]
[BlackClock "0:00:02"]

1. d4 {[%clk 0:03:00]}  c5 {[%clk 0:02:57]} 2. d5 {[%clk 0:03:00]}  g6 {[%clk 0:02:55]} 3. h4 {[%clk 0:02:58]}  Nf6 {[%clk 0:02:55]} 4. Nc3 {[%clk 0:02:55]}  Bg7 {[%clk 0:02:50]} 5. e4 {[%clk 0:02:55]}  d6 {[%clk 0:02:50]} 6. Be2 {[%clk 0:02:55]}  h5 {[%clk 0:02:46]} 7. Bg5 {[%clk 0:02:54]}  Na6 {[%clk 0:02:45]} 8. Qd2 {[%clk 0:02:49]}  Nc7 {[%clk 0:02:44]} 9. f4 {[%clk 0:02:46]}  O-O {[%clk 0:02:43]} 10. O-O-O {[%clk 0:02:45]}  b5 {[%clk 0:02:42]} 11. e5 {[%clk 0:02:42]}  b4 {[%clk 0:02:36]} 12. Nb5 {[%clk 0:02:22]}  Ne4 {[%clk 0:02:32]} 13. Qe3 {[%clk 0:02:22]}  Nxg5 {[%clk 0:02:32]} 14. Nxc7 {[%clk 0:02:21]}  Qxc7 {[%clk 0:02:30]} 15. exd6 {[%clk 0:02:16]}  exd6 {[%clk 0:02:30]} 16. hxg5 {[%clk 0:02:15]}  c4 {[%clk 0:02:11]} 17. g4 {[%clk 0:02:15]}  Qa5 {[%clk 0:02:04]} 18. Kb1 {[%clk 0:02:01]}  Bxb2 {[%clk 0:01:37]} 19. Kxb2 {[%clk 0:01:45]}  Bd7 {[%clk 0:01:05]} 20. Bxc4 {[%clk 0:01:39]}  Bxg4 {[%clk 0:01:05]} 21. Re1 {[%clk 0:01:35]}  Rfe8 {[%clk 0:00:51]} 22. Qxe8+ {[%clk 0:01:20]}  Rxe8 {[%clk 0:00:52]} 23. Rxe8+ {[%clk 0:01:18]}  Kg7 {[%clk 0:00:53]} 24. Ne2 {[%clk 0:01:16]}  Qa3+ {[%clk 0:00:45]} 25. Kb1 {[%clk 0:01:14]}  a5 {[%clk 0:00:19]} 26. Nc1 {[%clk 0:00:40]}  Qc3 {[%clk 0:00:16]} 27. Bb3 {[%clk 0:00:35]}  Bf3 {[%clk 0:00:11]} 28. Rhe1 {[%clk 0:00:33]}  h4 {[%clk 0:00:10]} 29. R1e3 {[%clk 0:00:32]}  Qd2 {[%clk 0:00:03]} 30. Rxf3 {[%clk 0:00:31]}  a4 {[%clk 0:00:04]} 31. Bxa4 {[%clk 0:00:30]}  Qxd5 {[%clk 0:00:04]} 32. Ree3 {[%clk 0:00:30]}  Qf5 {[%clk 0:00:03]} 33. Bb3 {[%clk 0:00:30]}  d5 {[%clk 0:00:03]} 34. Ne2 {[%clk 0:00:28]}  f6 {[%clk 0:00:01]} 35. gxf6+ {[%clk 0:00:27]}  Kxf6 {[%clk 0:00:01]} 36. Rd3 {[%clk 0:00:27]}  Qe4 {[%clk 0:00:01]} 37. Nd4 {[%clk 0:00:22]}  Qe1+ {[%clk 0:00:02]} 38. Kb2 {[%clk 0:00:22]}  g5 {[%clk 0:00:02]} 39. fxg5+ {[%clk 0:00:21]}  Kxg5 {[%clk 0:00:02]} 40. Bxd5 {[%clk 0:00:22]}  Qe5 {[%clk 0:00:01]} 41. Bb3 {[%clk 0:00:23]}  Kg4 {[%clk 0:00:01]} 42. Rfe3 {[%clk 0:00:23]}  Qf4 {[%clk 0:00:01]} 43. Be6+ {[%clk 0:00:22]}  Kg5 {[%clk 0:00:01]} 44. Re5+ {[%clk 0:00:22]}  Kf6 {[%clk 0:00:01]} 45. Rf5+ {[%clk 0:00:22]}  Qxf5 {[%clk 0:00:02]} 46. Bxf5 {[%clk 0:00:23]}  Ke5 {[%clk 0:00:02]} 47. Bh3 {[%clk 0:00:23]} 1-0


[Site "https://www.chess.com"]

[Event "Titled Tuesday Blitz June 21 Early 2022"]
[White "Ovchinnikov, Vsevolod"]
[Black "Skliarov, Viktor"]
[WhiteFideId "24176842"]
[BlackFideId "14106736"]
[WhiteElo "2513"]
[BlackElo "2682"]
[Result "1-0"]
[Round "06"]
[TimeControl "180+1"]
[Date "2022.06.21"]
[WhiteClock "0:00:05"]
[BlackClock "0:00:03"]

1. d4 {[%clk 0:03:00]}  Nf6 {[%clk 0:03:00]} 2. c4 {[%clk 0:03:01]}  e6 {[%clk 0:03:00]} 3. g3 {[%clk 0:03:01]}  c5 {[%clk 0:03:00]} 4. d5 {[%clk 0:03:01]}  exd5 {[%clk 0:03:00]} 5. cxd5 {[%clk 0:03:02]}  d6 {[%clk 0:03:01]} 6. Nc3 {[%clk 0:03:03]}  g6 {[%clk 0:03:01]} 7. Bg2 {[%clk 0:03:04]}  Bg7 {[%clk 0:03:01]} 8. Nf3 {[%clk 0:03:04]}  O-O {[%clk 0:03:02]} 9. O-O {[%clk 0:03:05]}  a6 {[%clk 0:03:01]} 10. a4 {[%clk 0:03:05]}  Re8 {[%clk 0:03:02]} 11. Nd2 {[%clk 0:03:06]}  Nh5 {[%clk 0:03:00]} 12. Nc4 {[%clk 0:03:03]}  f5 {[%clk 0:02:55]} 13. a5 {[%clk 0:02:42]}  Qc7 {[%clk 0:02:38]} 14. e4 {[%clk 0:02:27]}  Bxc3 {[%clk 0:02:12]} 15. bxc3 {[%clk 0:02:25]}  fxe4 {[%clk 0:02:12]} 16. Re1 {[%clk 0:01:48]}  Nd7 {[%clk 0:02:05]} 17. Rxe4 {[%clk 0:00:51]}  Rxe4 {[%clk 0:02:03]} 18. Bxe4 {[%clk 0:00:52]}  Ndf6 {[%clk 0:02:03]} 19. Bf3 {[%clk 0:00:52]}  Bh3 {[%clk 0:01:51]} 20. Bg5 {[%clk 0:00:49]}  Rf8 {[%clk 0:01:31]} 21. Qe2 {[%clk 0:00:35]}  Re8 {[%clk 0:01:20]} 22. Qd3 {[%clk 0:00:32]}  Bf5 {[%clk 0:01:15]} 23. Qd1 {[%clk 0:00:32]}  Ne4 {[%clk 0:01:08]} 24. Bxe4 {[%clk 0:00:22]}  Bxe4 {[%clk 0:01:05]} 25. Ne3 {[%clk 0:00:20]}  Qf7 {[%clk 0:01:01]} 26. Qg4 {[%clk 0:00:18]}  Bf3 {[%clk 0:00:54]} 27. Qc4 {[%clk 0:00:16]}  Qd7 {[%clk 0:00:42]} 28. Re1 {[%clk 0:00:13]}  Ng7 {[%clk 0:00:37]} 29. Qf1 {[%clk 0:00:11]}  Kf7 {[%clk 0:00:28]} 30. h3 {[%clk 0:00:09]}  h5 {[%clk 0:00:25]} 31. Kh2 {[%clk 0:00:09]}  Re4 {[%clk 0:00:20]} 32. Bf4 {[%clk 0:00:08]}  Nf5 {[%clk 0:00:18]} 33. Rb1 {[%clk 0:00:07]}  Ne7 {[%clk 0:00:06]} 34. Qd3 {[%clk 0:00:07]}  Qc7 {[%clk 0:00:04]} 35. Nc4 {[%clk 0:00:05]}  Rxf4 {[%clk 0:00:04]} 36. gxf4 {[%clk 0:00:05]}  Bxd5 {[%clk 0:00:05]} 37. Ne3 {[%clk 0:00:05]}  Be6 {[%clk 0:00:05]} 38. c4 {[%clk 0:00:05]}  Nf5 {[%clk 0:00:05]} 39. Rb6 {[%clk 0:00:04]}  Nxe3 {[%clk 0:00:04]} 40. fxe3 {[%clk 0:00:05]}  Bf5 {[%clk 0:00:03]} 41. Qd5+ {[%clk 0:00:05]}  Kg7 {[%clk 0:00:03]} 42. Rxb7 {[%clk 0:00:05]} 1-0


[Site "https://www.chess.com"]

[Event "Titled Tuesday Blitz June 21 Early 2022"]
[White "Petrovic, Aleksa"]
[Black "Itkis, Boris"]
[WhiteFideId "967629"]
[BlackFideId "1209167"]
[WhiteElo "2117"]
[BlackElo "2207"]
[Result "0-1"]
[Round "06"]
[TimeControl "180+1"]
[Date "2022.06.21"]
[WhiteClock "0:00:03"]
[BlackClock "0:00:19"]

1. d4 {[%clk 0:03:00]}  Nf6 {[%clk 0:02:57]} 2. c4 {[%clk 0:03:01]}  Nc6 {[%clk 0:02:56]} 3. Nf3 {[%clk 0:02:59]}  e6 {[%clk 0:02:56]} 4. Nc3 {[%clk 0:02:58]}  Bb4 {[%clk 0:02:56]} 5. Qc2 {[%clk 0:02:58]}  O-O {[%clk 0:02:54]} 6. Bd2 {[%clk 0:02:56]}  d6 {[%clk 0:02:51]} 7. Rd1 {[%clk 0:02:50]}  Qe7 {[%clk 0:02:46]} 8. a3 {[%clk 0:02:47]}  Bxc3 {[%clk 0:02:46]} 9. Bxc3 {[%clk 0:02:47]}  e5 {[%clk 0:02:45]} 10. c5 {[%clk 0:02:38]}  e4 {[%clk 0:02:25]} 11. cxd6 {[%clk 0:02:12]}  cxd6 {[%clk 0:02:26]} 12. d5 {[%clk 0:02:04]}  exf3 {[%clk 0:01:58]} 13. dxc6 {[%clk 0:02:03]}  fxe2 {[%clk 0:01:44]} 14. Qxe2 {[%clk 0:01:42]}  Re8 {[%clk 0:01:13]} 15. Qxe7 {[%clk 0:01:13]}  Rxe7+ {[%clk 0:01:11]} 16. Be2 {[%clk 0:01:06]}  bxc6 {[%clk 0:01:07]} 17. Bxf6 {[%clk 0:01:01]}  gxf6 {[%clk 0:01:05]} 18. Rxd6 {[%clk 0:01:01]}  Ba6 {[%clk 0:01:00]} 19. O-O {[%clk 0:00:28]}  Bxe2 {[%clk 0:00:43]} 20. Rc1 {[%clk 0:00:20]}  Rae8 {[%clk 0:00:42]} 21. Rxf6 {[%clk 0:00:16]}  Bb5 {[%clk 0:00:30]} 22. h3 {[%clk 0:00:16]}  Re1+ {[%clk 0:00:30]} 23. Rxe1 {[%clk 0:00:16]}  Rxe1+ {[%clk 0:00:31]} 24. Kh2 {[%clk 0:00:17]}  Rb1 {[%clk 0:00:29]} 25. Rf4 {[%clk 0:00:11]}  Rxb2 {[%clk 0:00:26]} 26. a4 {[%clk 0:00:12]}  Bd3 {[%clk 0:00:26]} 27. Rd4 {[%clk 0:00:09]}  Bg6 {[%clk 0:00:24]} 28. Rd6 {[%clk 0:00:07]}  Ra2 {[%clk 0:00:20]} 29. Rxc6 {[%clk 0:00:05]}  Rxa4 {[%clk 0:00:21]} 30. g4 {[%clk 0:00:04]}  a5 {[%clk 0:00:20]} 31. Kg3 {[%clk 0:00:04]}  Ra1 {[%clk 0:00:19]} 32. h4 {[%clk 0:00:04]}  a4 {[%clk 0:00:19]} 33. h5 {[%clk 0:00:04]}  Be4 {[%clk 0:00:19]} 34. Rc8+ {[%clk 0:00:02]}  Kg7 {[%clk 0:00:19]} 35. Kf4 {[%clk 0:00:03]}  Bd5 {[%clk 0:00:19]} 36. Kg5 {[%clk 0:00:02]}  h6+ {[%clk 0:00:18]} 37. Kf5 {[%clk 0:00:03]}  Be6+ {[%clk 0:00:19]} 0-1


[Site "https://www.chess.com"]

[Event "Titled Tuesday Blitz June 21 Early 2022"]
[White "Pham, Tran Gia Phuc"]
[Black "Devaev, Alexander"]
[WhiteFideId "12415669"]
[BlackFideId "4169395"]
[WhiteElo "1789"]
[BlackElo "2185"]
[Result "1-0"]
[Round "06"]
[TimeControl "180+1"]
[Date "2022.06.21"]
[WhiteClock "0:00:04"]
[BlackClock "0:00:07"]

1. c4 {[%clk 0:02:55]}  Nf6 {[%clk 0:02:59]} 2. Nc3 {[%clk 0:02:54]}  c5 {[%clk 0:02:59]} 3. g3 {[%clk 0:02:52]}  e6 {[%clk 0:02:59]} 4. Bg2 {[%clk 0:02:53]}  Be7 {[%clk 0:03:00]} 5. Nf3 {[%clk 0:02:53]}  O-O {[%clk 0:03:01]} 6. O-O {[%clk 0:02:54]}  Nc6 {[%clk 0:03:01]} 7. d4 {[%clk 0:02:54]}  cxd4 {[%clk 0:03:02]} 8. Nxd4 {[%clk 0:02:55]}  Ne5 {[%clk 0:03:03]} 9. b3 {[%clk 0:02:55]}  d6 {[%clk 0:03:03]} 10. e4 {[%clk 0:02:53]}  a6 {[%clk 0:03:04]} 11. f4 {[%clk 0:02:52]}  Ng6 {[%clk 0:03:03]} 12. Be3 {[%clk 0:02:49]}  Qc7 {[%clk 0:03:04]} 13. Rc1 {[%clk 0:02:46]}  Rb8 {[%clk 0:03:04]} 14. Na4 {[%clk 0:02:45]}  Re8 {[%clk 0:03:03]} 15. h3 {[%clk 0:02:42]}  Bf8 {[%clk 0:03:03]} 16. Qd3 {[%clk 0:02:22]}  b6 {[%clk 0:02:55]} 17. e5 {[%clk 0:02:16]}  dxe5 {[%clk 0:02:54]} 18. Nc6 {[%clk 0:02:16]}  exf4 {[%clk 0:02:54]} 19. gxf4 {[%clk 0:02:02]}  Nh4 {[%clk 0:02:38]} 20. Nxb8 {[%clk 0:01:46]}  Nxg2 {[%clk 0:02:26]} 21. Kxg2 {[%clk 0:01:46]}  Qxb8 {[%clk 0:02:22]} 22. Nxb6 {[%clk 0:01:45]}  Bb7+ {[%clk 0:02:15]} 23. Kg1 {[%clk 0:01:45]}  Rd8 {[%clk 0:02:10]} 24. Qe2 {[%clk 0:01:43]}  Ne4 {[%clk 0:02:09]} 25. Rfd1 {[%clk 0:01:41]}  Ng3 {[%clk 0:02:04]} 26. Qg4 {[%clk 0:01:28]}  Nf5 {[%clk 0:02:04]} 27. Bf2 {[%clk 0:01:26]}  Rxd1+ {[%clk 0:01:22]} 28. Rxd1 {[%clk 0:01:23]}  h5 {[%clk 0:01:23]} 29. Qxh5 {[%clk 0:01:12]}  Qxf4 {[%clk 0:01:23]} 30. Qg4 {[%clk 0:01:11]}  Qc7 {[%clk 0:01:15]} 31. Nd7 {[%clk 0:00:57]}  Be7 {[%clk 0:01:05]} 32. Kf1 {[%clk 0:00:35]}  Bh4 {[%clk 0:00:26]} 33. Qg1 {[%clk 0:00:14]}  Bxf2 {[%clk 0:00:21]} 34. Qxf2 {[%clk 0:00:14]}  Qc6 {[%clk 0:00:21]} 35. Ke2 {[%clk 0:00:11]}  Qe4+ {[%clk 0:00:20]} 36. Kd2 {[%clk 0:00:11]}  a5 {[%clk 0:00:16]} 37. Kc3 {[%clk 0:00:10]}  a4 {[%clk 0:00:16]} 38. Nc5 {[%clk 0:00:09]}  Qc6 {[%clk 0:00:16]} 39. Nxb7 {[%clk 0:00:07]}  Qxb7 {[%clk 0:00:17]} 40. b4 {[%clk 0:00:07]}  Qc7 {[%clk 0:00:15]} 41. c5 {[%clk 0:00:07]}  g6 {[%clk 0:00:13]} 42. Qe2 {[%clk 0:00:06]}  e5 {[%clk 0:00:13]} 43. Qe4 {[%clk 0:00:04]}  Qb8 {[%clk 0:00:10]} 44. Rd5 {[%clk 0:00:04]}  a3 {[%clk 0:00:10]} 45. Qxe5 {[%clk 0:00:04]}  Qa7 {[%clk 0:00:08]} 46. Qe8+ {[%clk 0:00:04]}  Kg7 {[%clk 0:00:08]} 47. Rd8 {[%clk 0:00:04]}  Qb7 {[%clk 0:00:07]} 48. Qh8# {[%clk 0:00:04]} 1-0


[Site "https://www.chess.com"]

[Event "Titled Tuesday Blitz June 21 Early 2022"]
[White "Piliczewski, Bogusz"]
[Black "Li, Zhuoling"]
[WhiteFideId "1104144"]
[BlackFideId "8605629"]
[WhiteElo "1896"]
[BlackElo "2303"]
[Result "0-1"]
[Round "06"]
[TimeControl "180+1"]
[Date "2022.06.21"]
[WhiteClock "0:00:03"]
[BlackClock "0:00:08"]

1. d4 {[%clk 0:03:00]}  Nf6 {[%clk 0:02:59]} 2. Nf3 {[%clk 0:03:00]}  d5 {[%clk 0:02:58]} 3. c4 {[%clk 0:02:59]}  g6 {[%clk 0:02:57]} 4. Bf4 {[%clk 0:02:58]}  Bg7 {[%clk 0:02:55]} 5. e3 {[%clk 0:02:57]}  c5 {[%clk 0:02:50]} 6. Nc3 {[%clk 0:02:53]}  cxd4 {[%clk 0:02:44]} 7. exd4 {[%clk 0:02:51]}  Nc6 {[%clk 0:02:44]} 8. h3 {[%clk 0:02:43]}  O-O {[%clk 0:02:37]} 9. Be2 {[%clk 0:02:43]}  dxc4 {[%clk 0:02:04]} 10. d5 {[%clk 0:02:33]}  Na5 {[%clk 0:02:00]} 11. Be5 {[%clk 0:01:35]}  b6 {[%clk 0:01:40]} 12. Qd4 {[%clk 0:01:27]}  Bb7 {[%clk 0:01:33]} 13. Rd1 {[%clk 0:01:20]}  Rc8 {[%clk 0:01:32]} 14. O-O {[%clk 0:01:15]}  Ne8 {[%clk 0:01:28]} 15. Bxg7 {[%clk 0:01:12]}  Nxg7 {[%clk 0:01:27]} 16. Ne5 {[%clk 0:01:13]}  Nf5 {[%clk 0:01:22]} 17. Qf4 {[%clk 0:00:55]}  Nd6 {[%clk 0:01:20]} 18. Qh6 {[%clk 0:00:32]}  Nf5 {[%clk 0:01:17]} 19. Qf4 {[%clk 0:00:29]}  Ng7 {[%clk 0:00:48]} 20. Nxc4 {[%clk 0:00:15]}  Nxc4 {[%clk 0:00:27]} 21. Bxc4 {[%clk 0:00:13]}  Qc7 {[%clk 0:00:27]} 22. Qxc7 {[%clk 0:00:12]}  Rxc7 {[%clk 0:00:27]} 23. Bb3 {[%clk 0:00:12]}  Nf5 {[%clk 0:00:23]} 24. Rfe1 {[%clk 0:00:10]}  Rd7 {[%clk 0:00:20]} 25. Re2 {[%clk 0:00:09]}  Nd6 {[%clk 0:00:15]} 26. Rde1 {[%clk 0:00:06]}  Rfd8 {[%clk 0:00:09]} 27. Rxe7 {[%clk 0:00:04]}  Bc8 {[%clk 0:00:08]} 28. Rxd7 {[%clk 0:00:03]}  Bxd7 {[%clk 0:00:08]} 0-1


[Site "https://www.chess.com"]

[Event "Titled Tuesday Blitz June 21 Early 2022"]
[White "Polster, Christian"]
[Black "Do Nascimento,Christian Almeida"]
[WhiteFideId "12965081"]
[BlackFideId "2143801"]
[WhiteElo "2263"]
[BlackElo "2085"]
[Result "1-0"]
[Round "06"]
[TimeControl "180+1"]
[Date "2022.06.21"]
[WhiteClock "0:00:22"]
[BlackClock "0:00:25"]

1. e4 {[%clk 0:03:00]}  e5 {[%clk 0:02:58]} 2. Nf3 {[%clk 0:03:00]}  Nc6 {[%clk 0:02:59]} 3. Bc4 {[%clk 0:03:00]}  Bc5 {[%clk 0:02:56]} 4. b4 {[%clk 0:02:53]}  Bxb4 {[%clk 0:02:56]} 5. c3 {[%clk 0:02:53]}  Be7 {[%clk 0:02:55]} 6. d4 {[%clk 0:02:51]}  d6 {[%clk 0:02:39]} 7. dxe5 {[%clk 0:02:50]}  Nxe5 {[%clk 0:02:38]} 8. Nxe5 {[%clk 0:02:44]}  dxe5 {[%clk 0:02:38]} 9. Qh5 {[%clk 0:02:44]}  g6 {[%clk 0:02:30]} 10. Qxe5 {[%clk 0:02:43]}  Nf6 {[%clk 0:02:30]} 11. Bh6 {[%clk 0:02:40]}  Rg8 {[%clk 0:02:09]} 12. Bg5 {[%clk 0:02:11]}  Qd6 {[%clk 0:01:48]} 13. Qxd6 {[%clk 0:01:19]}  cxd6 {[%clk 0:01:46]} 14. Nd2 {[%clk 0:01:20]}  Be6 {[%clk 0:01:42]} 15. e5 {[%clk 0:00:58]}  dxe5 {[%clk 0:01:35]} 16. Bxe6 {[%clk 0:00:58]}  fxe6 {[%clk 0:01:35]} 17. Bxf6 {[%clk 0:00:59]}  Bxf6 {[%clk 0:01:35]} 18. Ne4 {[%clk 0:00:59]}  Ke7 {[%clk 0:01:35]} 19. Ke2 {[%clk 0:00:53]}  Rgd8 {[%clk 0:01:33]} 20. Rhd1 {[%clk 0:00:47]}  b6 {[%clk 0:01:15]} 21. a4 {[%clk 0:00:44]}  Rd5 {[%clk 0:01:14]} 22. a5 {[%clk 0:00:37]}  bxa5 {[%clk 0:00:58]} 23. Rab1 {[%clk 0:00:31]}  Rad8 {[%clk 0:00:56]} 24. Rb7+ {[%clk 0:00:30]}  R8d7 {[%clk 0:00:38]} 25. Rxd7+ {[%clk 0:00:30]}  Rxd7 {[%clk 0:00:36]} 26. Rxd7+ {[%clk 0:00:30]}  Kxd7 {[%clk 0:00:36]} 27. Nxf6+ {[%clk 0:00:31]}  Kc6 {[%clk 0:00:37]} 28. Kd3 {[%clk 0:00:29]}  Kb5 {[%clk 0:00:31]} 29. Kc2 {[%clk 0:00:26]}  Kc4 {[%clk 0:00:30]} 30. f3 {[%clk 0:00:24]}  a4 {[%clk 0:00:30]} 31. Ne4 {[%clk 0:00:23]}  a3 {[%clk 0:00:29]} 32. Nd2+ {[%clk 0:00:23]}  Kb5 {[%clk 0:00:26]} 33. Kb3 {[%clk 0:00:24]}  Kc5 {[%clk 0:00:25]} 34. Kxa3 {[%clk 0:00:21]}  Kb5 {[%clk 0:00:25]} 35. Kb3 {[%clk 0:00:22]} 1-0


[Site "https://www.chess.com"]